bitfinex-derivatives/quotes_ETHF0:USTF0_20240923
["timestamp","ask_amount","ask_price","bid_price","bid_amount"]
[1727110385587,0.95424621,2663.0,2662.9,0.37551]
[1727110385789,1.32974621,2663.0,2662.8,0.37552]
[1727110385985,1.32974621,2663.0,2662.7,3.2078]
[1727110385986,1.32973621,2663.1,2662.9,0.3755]
[1727110386187,0.95424621,2663.1,2662.9,0.3755]
[1727110386386,0.95424621,2663.1,2662.7,3.2078]
[1727110386387,0.9538888,2663.1,2663.0,0.37549]
[1727110386788,0.95422035,2663.2,2662.8,0.9388]
[1727110387091,0.95422035,2663.3,2662.9,0.8158]
[1727110387291,0.37548,2663.1,2662.9,1.1913]
[1727110387497,0.37547,2663.2,2662.9,1.1913]
[1727110387880,1.32969035,2663.2,2662.9,1.1913]
[1727110388391,1.32969035,2663.2,2663.0,0.37549]
[1727110388590,0.95422035,2663.2,2663.0,0.37549]
[1727110388891,1.32968035,2663.2,2663.0,0.37549]
[1727110389793,0.95422035,2663.3,2662.9,0.8158]
[1727110390090,0.37548,2663.1,2663.0,0.7679]
[1727110390792,0.37548,2663.2,2663.0,0.7679]
[1727110390992,0.37547,2663.2,2663.0,1.14339]
[1727110391184,1.32969035,2663.2,2663.0,1.14339]
[1727110391385,0.37546,2663.2,2663.0,1.14338]
[1727110391987,0.37547,2663.2,2663.0,1.14339]
[1727110392292,0.37548,2663.1,2663.0,0.7679]
[1727110392990,1.32969035,2663.2,2663.0,1.14339]
[1727110393192,0.95422035,2663.2,2663.1,0.37548]
[1727110393495,0.95422035,2663.3,2663.0,0.7679]
[1727110393697,1.32969035,2663.2,2663.0,1.14339]
[1727110393896,0.95422035,2663.2,2663.0,0.7679]
[1727110394087,0.95422035,2663.2,2663.0,1.14338]
[1727110394088,0.37547,2663.2,2663.0,1.14338]
[1727110394489,0.37547,2663.2,2662.9,1.1913]
[1727110394490,0.37548,2663.1,2662.9,1.1913]
[1727110394689,0.95422035,2663.1,2662.9,0.8158]
[1727110395192,1.32971035,2663.1,2662.9,1.1913]
[1727110395395,0.37554,2662.7,2662.5,0.37556]
[1727110395599,0.37554,2662.7,2662.1,4.14684]
[1727110395600,0.95376978,2662.7,2662.2,0.93902]
[1727110395893,1.32930978,2662.7,2662.5,0.37556]
[1727110396094,0.37555,2662.6,2662.4,0.37557]
[1727110396392,1.32930978,2662.7,2662.5,0.37556]
[1727110396596,0.95376978,2662.7,2662.5,0.37556]
[1727110396905,4.20376978,2662.8,2662.5,0.37556]
[1727110397087,1.32930978,2662.7,2662.1,4.14684]
[1727110397288,0.37554,2662.7,2662.1,4.14684]
[1727110397484,0.37554,2662.7,2662.5,0.37556]
[1727110397690,1.32930978,2662.7,2662.1,4.14684]
[1727110397890,1.32931978,2662.7,2662.4,0.37557]
[1727110398093,1.32931978,2662.7,2662.1,4.14685]
[1727110398094,0.95376978,2662.6,2662.1,3.2078]
[1727110398292,0.93892,2662.5,2662.1,3.2078]
[1727110398498,1.18478,2662.5,2662.2,0.3756]
[1727110398704,0.37558,2662.4,2662.1,3.2078]
[1727110398897,1.18477,2662.5,2662.2,0.3756]
[1727110399099,0.37558,2662.4,2662.1,3.58341]
[1727110399299,0.8092,2662.5,2662.2,0.3756]
[1727110399601,0.37559,2662.4,2662.1,3.58342]
[1727110399789,0.95376978,2662.6,2662.1,3.2078]
[1727110399988,4.53710978,2662.7,2662.4,0.37557]
[1727110400393,7.17710978,2662.7,2662.4,0.37557]
[1727110400609,0.37555,2662.6,2662.4,0.37557]
[1727110400896,0.37555,2662.6,2662.1,3.2078]
[1727110401095,3.96930978,2662.7,2662.1,3.2078]
[1727110401396,0.95376978,2662.6,2662.4,0.37557]
[1727110402199,0.95376978,2662.7,2662.1,3.2078]
[1727110402401,0.95376978,2663.0,2662.7,0.37552]
[1727110402600,0.95376978,2663.0,2662.8,0.7868]
[1727110402790,0.95376978,2663.0,2662.4,3.2078]
[1727110402791,0.37553,2662.8,2662.5,1.96596]
[1727110403100,0.95376978,2662.9,2662.7,0.37553]
[1727110403403,1.32927978,2662.9,2662.6,0.37554]
[1727110403988,1.32927978,2662.9,2661.9,0.37564]
[1727110403989,0.37561,2662.2,2661.9,0.37564]
[1727110404202,0.37562,2662.1,2661.8,3.58345]
[1727110404597,2.64,2662.2,2661.7,1.5971]
[1727110404804,0.37562,2662.1,2661.7,1.97277]
[1727110405098,4.53288121,2662.2,2661.7,1.5971]
[1727110405297,3.01567,2661.8,2661.4,3.58351]
[1727110405500,2.64,2661.8,2661.4,3.2078]
[1727110405699,2.64,2661.8,2661.5,0.3757]
[1727110405897,2.64,2661.8,2661.4,3.2078]
[1727110406093,4.53730121,2662.0,2661.7,0.37568]
[1727110406094,0.95385121,2661.9,2661.7,0.37568]
[1727110406405,6.80165121,2662.0,2661.7,0.37567]
[1727110406593,5.8478,2662.0,2661.7,0.37567]
[1727110406904,7.17729121,2662.0,2661.7,0.37567]
[1727110407102,4.16165121,2662.0,2661.5,0.93927]
[1727110407291,4.16165121,2662.0,2661.4,3.2078]
[1727110407292,0.93913,2661.9,2661.4,3.2078]
[1727110407500,2.64,2661.7,2661.5,0.3757]
[1727110407700,3.01568,2661.7,2661.4,3.58351]
[1727110408303,2.64,2661.7,2661.4,3.2078]
[1727110408605,2.64,2661.9,2661.8,0.37566]
[1727110408824,3.2078,2662.0,2661.7,0.37567]
[1727110409006,2.64,2661.9,2661.7,0.37567]
[1727110409506,2.64,2661.9,2661.5,0.7635]
[1727110409809,2.64,2661.9,2661.8,0.37566]
[1727110411008,3.2078,2662.0,2661.9,0.37565]
[1727110411611,2.64,2662.4,2662.3,0.37559]
[1727110412503,6.77159,2662.4,2662.0,0.7612]
[1727110412802,2.64,2662.2,2662.1,0.37562]
[1727110413211,3.01561,2662.2,2662.0,1.13683]
[1727110413410,2.64,2662.2,2662.0,1.13683]
[1727110413612,2.64,2662.2,2662.0,0.37563]
[1727110413909,2.64,2662.2,2662.1,0.37562]
[1727110414300,6.396,2662.2,2662.1,0.37562]
[1727110415101,3.2078,2662.4,2662.3,0.37559]
[1727110415905,2.64,2662.9,2662.7,0.37552]
[1727110416115,3.01551,2662.9,2662.7,3.2078]
[1727110416297,3.01551,2662.9,2662.8,0.37552]
[1727110416298,2.64,2662.9,2662.8,0.37552]
[1727110416803,2.64,2662.9,2662.8,1.12422]
[1727110417218,0.95385121,2663.4,2662.8,5.44271]
[1727110417399,3.80823,2663.5,2663.3,3.2078]
[1727110417602,3.4328,2663.5,2663.0,0.37549]
[1727110417802,2.64,2663.2,2662.8,3.9565]
[1727110418106,3.01547,2663.2,2663.0,0.37549]
[1727110418300,3.01547,2663.2,2662.8,3.9565]
[1727110418301,2.64,2663.2,2662.8,3.9565]
[1727110418500,0.93862,2663.4,2662.8,4.33202]
[1727110418501,2.64,2662.9,2662.8,4.33202]
[1727110418703,2.64,2662.9,2662.8,3.9565]
[1727110419117,2.64,2662.9,2662.7,0.37553]
[1727110419313,2.64,2662.9,2662.5,3.2078]
[1727110419498,2.64,2662.9,2662.8,0.37552]
[1727110419698,2.64,2662.9,2662.8,3.58332]
[1727110419899,2.07851121,2663.3,2663.0,0.37549]
[1727110419900,2.64,2663.2,2663.0,0.37549]
[1727110420110,2.64,2663.2,2662.9,0.782]
[1727110420411,3.01547,2663.2,2662.9,1.1575]
[1727110420612,2.64,2663.0,2662.9,1.1575]
[1727110421709,2.64,2663.0,2662.9,0.782]
[1727110422210,2.64,2663.2,2663.0,0.37549]
[1727110422516,3.01547,2663.2,2663.0,1.20979]
[1727110422814,2.64,2663.2,2663.0,1.20979]
[1727110423208,0.95385121,2663.3,2663.1,0.37547]
[1727110423404,3.01545,2663.4,2663.1,0.37547]
[1727110424309,3.01545,2663.4,2663.0,1.6603]
[1727110424509,0.37545,2663.3,2663.1,0.37547]
[1727110424716,0.37545,2663.3,2663.0,2.03578]
[1727110425008,2.64,2663.2,2663.0,0.8343]
[1727110425417,0.37548,2663.1,2663.0,0.8343]
[1727110425604,6.77067,2663.2,2663.0,1.20979]
[1727110425811,3.01547,2663.2,2663.0,1.20979]
[1727110426032,2.64,2663.2,2663.1,0.37548]
[1727110426812,3.01547,2663.2,2663.0,1.20979]
[1727110427110,0.37548,2663.1,2663.0,1.20979]
[1727110427312,2.64,2663.2,2662.8,3.2078]
[1727110427313,0.3755,2663.0,2662.8,3.2078]
[1727110427614,0.37549,2663.0,2662.9,0.3755]
[1727110427814,2.64,2663.0,2662.9,0.3755]
[1727110428010,3.01549,2663.0,2662.9,0.3755]
[1727110428209,0.37552,2662.9,2662.8,0.37552]
[1727110428512,0.95385121,2663.7,2662.9,4.21062167]
[1727110428818,2.53477027,2664.1,2664.0,0.37535]
[1727110428819,0.087,2664.1,2664.0,0.37535]
[1727110429013,0.95385121,2664.3,2664.0,3.2078]
[1727110429312,0.3753,2664.4,2664.2,0.37532]
[1727110429918,0.37531,2664.3,2664.1,1.16943]
[1727110430103,0.8021,2664.5,2664.1,1.16943]
[1727110430309,0.37531,2664.3,2664.1,1.16943]
[1727110430515,0.37531,2664.4,2664.2,0.37532]
[1727110430816,0.37531,2664.4,2664.1,0.7941]
[1727110431018,0.93821,2664.5,2664.1,0.7941]
[1727110431210,0.37532,2664.3,2664.1,1.16943]
[1727110431416,0.37532,2664.2,2664.1,0.7941]
[1727110431607,0.18776548,2664.2,2664.1,1.16944]
[1727110431915,0.18776548,2664.2,2664.1,0.37534]
[1727110431916,0.95698206,2664.2,2664.1,0.37534]
[1727110432122,1.91003328,2664.4,2664.3,0.37531]
[1727110432413,1.91003328,2664.4,2664.0,3.2078]
[1727110432414,0.95648009,2664.4,2664.0,3.2078]
[1727110432716,0.95648009,2664.4,2664.3,0.37531]
[1727110433116,0.37529,2664.5,2664.4,0.3753]
[1727110433417,0.37529,2664.5,2664.0,4.14617]
[1727110433418,0.3753,2664.4,2664.3,0.3753]
[1727110433621,0.95660271,2664.4,2664.3,0.3753]
[1727110434015,0.95660271,2664.5,2664.4,0.3753]
[1727110434216,1.75960271,2664.6,2664.5,0.37528]
[1727110434423,0.803,2664.6,2664.5,0.37528]
[1727110435231,1.17828,2664.6,2664.4,0.37529]
[1727110436224,0.95660271,2664.7,2664.3,0.93828]
[1727110436423,2.07905271,2664.8,2664.6,0.37526]
[1727110436629,1.70380271,2664.8,2664.4,3.9374]
[1727110436924,2.07904271,2664.8,2664.7,0.37525]
[1727110437415,0.95660271,2664.9,2664.4,3.9374]
[1727110437618,1.70390271,2664.9,2664.6,0.37525]
[1727110437819,0.37526,2664.7,2664.6,0.37527]
[1727110438015,0.37528,2664.5,2664.4,3.58309]
[1727110438218,0.93814,2664.7,2664.4,3.58309]
[1727110438219,3.01527,2664.6,2664.5,0.37528]
[1727110438820,3.3873,2664.9,2664.7,0.37525]
[1727110439018,3.76253,2664.9,2664.8,0.37524]
[1727110439421,1.12253,2664.9,2664.8,0.37524]
[1727110439717,4.32538,2664.9,2664.5,0.7495]
[1727110439918,0.37528,2664.6,2664.4,3.2078]
[1727110440120,0.37526,2664.7,2664.4,3.2078]
[1727110440321,3.3873,2664.9,2664.4,3.2078]
[1727110440524,0.37525,2664.8,2664.4,3.2078]
[1727110440824,0.37525,2664.8,2664.7,0.37525]
[1727110441721,0.37526,2664.7,2664.6,0.37526]
[1727110441911,0.37525,2664.8,2664.4,3.2078]
[1727110442116,3.3873,2664.9,2664.7,0.37525]
[1727110442417,0.37524,2664.9,2664.7,0.37524]
[1727110442616,0.37526,2664.7,2664.6,0.37527]
[1727110443317,0.37526,2664.7,2664.4,3.2078]
[1727110443318,0.37526,2664.7,2664.5,0.37527]
[1727110443519,0.37528,2664.5,2664.3,0.3753]
[1727110443925,0.37532,2664.2,2664.1,0.7495]
[1727110444221,2.64,2664.4,2664.2,0.37532]
[1727110444222,0.37532,2664.3,2664.2,0.37532]
[1727110444412,0.3753,2664.4,2664.3,0.37531]
[1727110444618,0.7296,2664.5,2664.1,0.7495]
[1727110444820,0.3753,2664.4,2664.3,0.3753]
[1727110445019,1.10489,2664.5,2664.4,0.3753]
[1727110445516,1.10489,2664.5,2664.3,0.3753]
[1727110445517,0.3753,2664.4,2664.3,0.3753]
[1727110448533,0.37532,2664.3,2664.2,0.37532]
[1727110449017,0.37531,2664.4,2664.3,0.3753]
[1727110449421,0.37532,2664.3,2664.2,0.37532]
[1727110450424,0.93825,2664.4,2664.1,0.7495]
[1727110450625,0.37531,2664.3,2664.2,0.37531]
[1727110453633,3.57821,2664.5,2664.1,1.12483]
[1727110453634,0.37532,2664.2,2664.1,1.12483]
[1727110454733,0.37532,2664.2,2664.1,1.12484]
[1727110455232,0.37532,2664.3,2664.2,0.37531]
[1727110455625,2.48869,2664.6,2664.1,0.7495]
[1727110455626,0.93819,2664.6,2664.1,0.7495]
[1727110455837,0.37529,2664.5,2664.4,0.37528]
[1727110456527,3.2078,2664.7,2664.2,0.7804]
[1727110456733,0.37531,2664.3,2664.2,0.7804]
[1727110457068,3.57828,2664.3,2664.0,3.2078]
[1727110457226,0.37534,2664.1,2664.0,3.2078]
[1727110457632,0.37535,2664.0,2663.9,1.12166]
[1727110457827,0.37535,2664.0,2663.9,0.7463]
[1727110458228,2.48957,2664.4,2663.9,0.7463]
[1727110458432,2.48957,2664.4,2664.1,0.37533]
[1727110458433,0.37533,2664.2,2664.1,0.37533]
[1727110458733,5.12957,2664.4,2663.9,0.7463]
[1727110458930,0.37533,2664.2,2664.1,0.37533]
[1727110459636,0.37531,2664.3,2664.2,0.37532]
[1727110459828,0.37531,2664.3,2664.2,0.7971]
[1727110460132,0.37531,2664.3,2664.2,4.5507]
[1727110460439,0.37531,2664.3,2664.2,0.7971]
[1727110460636,0.37531,2664.3,2664.2,4.92602]
[1727110461029,0.37529,2664.5,2664.4,0.37529]
[1727110461430,2.64,2664.6,2664.4,0.37529]
[1727110461650,0.37528,2664.5,2664.4,0.37529]
[1727110461838,0.37529,2664.5,2664.4,0.37529]
[1727110462039,0.3753,2664.4,2664.2,0.7971]
[1727110462238,0.3753,2664.4,2664.3,0.3753]
[1727110463135,0.37529,2664.5,2664.4,0.37529]
[1727110464537,2.64,2664.6,2664.3,0.3753]
[1727110464538,0.37531,2664.4,2664.3,0.3753]
[1727110464939,0.37531,2664.3,2664.2,0.7971]
[1727110465736,0.93821,2664.5,2663.9,0.7463]
[1727110465737,0.37535,2664.1,2663.9,0.7463]
[1727110466041,0.37535,2664.0,2663.9,1.5506]
[1727110466235,2.64,2664.1,2664.0,0.37535]
[1727110466439,0.93831,2664.3,2663.9,1.5506]
[1727110466744,0.37534,2664.1,2664.0,0.37534]
[1727110466942,0.37532,2664.3,2664.2,0.37532]
[1727110468243,0.37528,2664.5,2664.4,0.37528]
[1727110468749,1.33188271,2664.6,2664.5,0.37528]
[1727110468951,0.37528,2664.6,2664.5,0.37528]
[1727110469240,1.89984278,2664.6,2664.1,0.7924]
[1727110469446,1.89987278,2664.5,2664.1,0.7924]
[1727110469651,0.37532,2664.3,2664.2,0.37532]
[1727110469837,0.37532,2664.2,2664.1,0.37533]
[1727110470844,1.89990278,2664.4,2664.0,3.2078]
[1727110470845,0.37532,2664.3,2664.2,0.37532]
[1727110471441,0.96165278,2664.3,2664.2,0.37532]
[1727110471647,0.96165278,2664.4,2664.3,0.37531]
[1727110471949,0.96165278,2664.5,2664.4,0.3753]
[1727110472144,0.96165278,2664.8,2664.4,0.3753]
[1727110472444,0.96393683,2664.8,2664.7,0.37525]
[1727110472648,2.28525328,2665.0,2664.5,1.5603]
[1727110472649,0.96393683,2664.9,2664.8,0.37524]
[1727110472838,0.9639738,2664.9,2664.8,0.37524]
[1727110473245,0.9639738,2664.9,2664.6,3.2078]
[1727110473541,0.9639738,2664.8,2664.7,0.37524]
[1727110473939,0.37523,2664.9,2664.7,0.37524]
[1727110473940,0.37523,2664.9,2664.7,4.12804]
[1727110474144,0.37523,2664.9,2664.7,0.37524]
[1727110474343,0.18772365,2664.8,2664.7,0.37524]
[1727110474549,2.28526328,2664.9,2664.8,0.37524]
[1727110474750,2.09775617,2664.9,2664.8,0.37524]
[1727110475047,2.47297617,2664.9,2664.8,0.37524]
[1727110475438,0.18772289,2664.9,2664.8,0.37524]
[1727110475840,0.96593897,2664.9,2664.8,0.37524]
[1727110476036,0.96593897,2664.9,2664.8,13.2843862]
[1727110476037,0.96582771,2664.9,2664.8,13.2843862]
[1727110476237,1.91003328,2665.2,2664.8,12.76804]
[1727110476450,0.18768247,2665.5,2665.1,3.583]
[1727110476451,1.91003328,2665.5,2665.1,3.583]
[1727110476746,3.22007027,2665.7,2665.5,0.37513]
[1727110476747,0.7863,2665.7,2665.5,0.37513]
[1727110476946,2.1193863,2665.6,2665.5,0.37513]
[1727110477244,0.18765983,2665.6,2665.5,0.37513]
[1727110477445,0.37512,2665.7,2665.5,0.37513]
[1727110477752,0.5627901,2665.6,2665.4,3.58295]
[1727110478046,4.57172647,2665.7,2665.5,0.37514]
[1727110478047,4.94684647,2665.7,2665.5,0.37514]
[1727110478240,0.18766034,2665.6,2665.5,0.37514]
[1727110479252,1.10861,2665.8,2665.7,0.37511]
[1727110479253,2.66522647,2665.8,2665.7,0.37511]
[1727110479447,0.9211568,2665.8,2665.6,1.13934055]
[1727110479648,0.9211568,2665.8,2665.7,0.37511]
[1727110479649,0.7335,2665.8,2665.7,0.37511]
[1727110479950,2.73052647,2666.0,2665.9,0.37508]
[1727110480250,0.7907,2666.3,2666.0,0.37507]
[1727110480251,2.30676647,2666.3,2666.0,0.37507]
[1727110480550,2.30676647,2666.3,2666.1,0.37506]
[1727110480551,0.37504,2666.3,2666.1,0.37506]
[1727110480846,3.10503647,2666.5,2666.0,3.2078]
[1727110481039,1.17331,2666.5,2666.3,0.37502]
[1727110481242,0.7983,2666.5,2666.4,0.37501]
[1727110481445,0.7983,2666.5,2666.3,0.37502]
[1727110481446,1.1733,2666.5,2666.3,0.37502]
[1727110481666,0.7983,2666.5,2666.0,3.2078]
[1727110482048,1.17331,2666.5,2666.3,0.37502]
[1727110482248,6.43227027,2666.8,2666.6,0.37497]
[1727110482249,3.58277,2666.8,2666.6,0.37497]
[1727110482552,3.58277,2666.8,2666.3,3.2078]
[1727110482553,2.64,2666.9,2666.4,0.7668]
[1727110482747,1.5677,2667.1,2666.5,0.37499]
[1727110482748,0.37496,2666.8,2666.5,0.37499]
[1727110482944,0.37496,2666.8,2666.6,0.37498]
[1727110483145,0.37495,2666.9,2666.6,0.37498]
[1727110483448,2.64,2667.0,2666.4,42.3228]
[1727110483649,1.5677,2667.1,2666.4,42.3228]
[1727110483845,0.37494,2667.0,2666.7,0.37497]
[1727110484147,1.94263,2667.1,2666.4,42.3228]
[1727110484351,1.5677,2667.1,2666.4,42.3228]
[1727110484549,0.37494,2667.0,2666.4,42.3228]
[1727110484950,2.64,2667.0,2666.4,42.3228]
[1727110485145,0.37495,2666.9,2666.7,0.37497]
[1727110485352,0.37495,2666.9,2666.8,0.37496]
[1727110485546,3.01494,2667.0,2666.8,0.37496]
[1727110485858,0.37495,2666.9,2666.4,42.3228]
[1727110486347,2.64,2667.0,2666.7,0.37497]
[1727110486556,0.37494,2666.9,2666.7,0.37497]
[1727110487653,2.64,2667.0,2666.8,0.37496]
[1727110487847,2.64,2667.0,2666.9,0.37494]
[1727110488042,1.94262,2667.1,2666.9,0.37494]
[1727110488351,1.5677,2667.1,2666.9,0.37494]
[1727110488553,0.37493,2667.0,2666.9,0.37494]
[1727110488746,1.5677,2667.1,2667.0,0.37493]
[1727110488747,1.94262,2667.1,2667.0,0.37493]
[1727110488946,1.94262,2667.1,2666.7,3.2078]
[1727110489353,1.5677,2667.1,2667.0,0.37493]
[1727110490757,0.7979,2667.1,2667.0,4.12453]
[1727110490960,1.17282,2667.1,2666.9,0.37493]
[1727110491258,1.17282,2667.1,2666.9,0.37494]
[1727110491447,0.7979,2667.1,2667.0,0.37493]
[1727110492655,6.5951,2667.4,2667.0,3.7496]
[1727110492851,0.37489,2667.3,2667.1,0.37491]
[1727110493350,0.3749,2667.2,2667.1,0.37491]
[1727110493556,0.37489,2667.3,2667.1,0.37491]
[1727110493952,0.3749,2667.3,2667.2,0.3749]
[1727110494145,0.37489,2667.3,2667.2,0.3749]
[1727110495251,3.2078,2667.4,2667.3,0.37489]
[1727110495653,3.2078,2667.4,2667.3,4.12369]
[1727110496060,0.7361,2667.5,2667.4,0.37487]
[1727110496358,1.11097,2667.5,2667.3,0.37488]
[1727110496554,3.01485,2667.6,2667.4,0.7735]
[1727110496856,0.37488,2667.4,2667.2,0.37489]
[1727110497360,0.37488,2667.4,2667.1,3.2078]
[1727110497361,0.37488,2667.4,2667.3,0.37489]
[1727110497562,0.3749,2667.2,2667.1,3.58271]
[1727110497760,1.1022,2667.3,2667.2,0.3749]
[1727110498061,0.3749,2667.2,2667.1,3.2078]
[1727110498261,0.7273,2667.3,2666.7,5.67663]
[1727110498455,0.7741,2667.1,2666.8,0.9374]
[1727110498660,0.7741,2667.1,2667.0,0.37493]
[1727110500055,1.14902,2667.1,2667.0,0.37493]
[1727110500467,0.7741,2667.1,2667.0,0.37493]
[1727110500961,1.14902,2667.1,2667.0,0.37493]
[1727110501265,1.14902,2667.1,2666.7,4.35626]
[1727110501266,0.37496,2666.8,2666.7,4.35626]
[1727110501451,3.95236,2666.8,2666.7,3.2078]
[1727110502064,3.01496,2666.8,2666.7,3.58277]
[1727110503058,0.37496,2666.8,2666.7,3.58277]
[1727110503257,0.37495,2666.9,2666.8,0.37494]
[1727110503457,0.37496,2666.8,2666.7,0.37496]
[1727110503659,0.37495,2666.9,2666.8,0.37494]
[1727110503865,0.37497,2666.8,2666.7,0.37496]
[1727110504358,0.37497,2666.8,2666.4,41.73753]
[1727110504359,0.375,2666.5,2666.4,41.17501]
[1727110504755,0.375,2666.5,2666.4,40.8]
[1727110505057,0.375,2666.5,2666.2,0.7429]
[1727110505058,0.37503,2666.3,2666.2,0.37502]
[1727110505258,1.09992,2666.4,2666.3,0.37503]
[1727110506165,0.37504,2666.3,2666.2,0.37503]
[1727110506356,0.37504,2666.2,2666.1,40.8]
[1727110506679,0.7458,2666.2,2665.7,3.2078]
[1727110506964,0.7458,2666.2,2665.3,3.2078]
[1727110506965,0.37516,2665.4,2665.3,3.2078]
[1727110507158,3.95305,2665.4,2665.3,3.2078]
[1727110507355,0.37521,2665.1,2664.9,0.37521]
[1727110507563,0.37521,2665.0,2664.9,0.37521]
[1727110507858,2.64,2665.2,2664.8,41.5449]
[1727110508356,0.37521,2665.1,2664.9,0.37522]
[1727110508567,0.37521,2665.0,2664.9,0.37522]
[1727110508762,0.3752,2665.1,2664.9,0.37522]
[1727110508959,0.37521,2665.0,2664.9,0.37522]
[1727110509354,0.37522,2664.9,2664.8,40.8]
[1727110509654,0.37522,2664.9,2664.6,3.2078]
[1727110509655,0.37524,2664.8,2664.6,3.2078]
[1727110509853,0.37524,2664.8,2664.6,3.58306]
[1727110510062,0.37524,2664.8,2664.7,0.37525]
[1727110510454,2.64,2664.9,2664.7,0.37525]
[1727110510859,2.64,2664.9,2664.6,44.38306]
[1727110511164,0.37525,2664.7,2664.6,0.37526]
[1727110511364,2.64,2664.7,2664.4,1.12019]
[1727110511566,0.37528,2664.5,2664.3,3.5831]
[1727110511863,0.93832,2664.2,2663.9,3.2078]
[1727110512065,2.64,2664.3,2663.9,0.37536]
[1727110512260,0.37535,2664.0,2663.9,3.58316]
[1727110512565,0.37534,2664.1,2664.0,0.37535]
[1727110512762,3.5783,2664.3,2663.9,0.37536]
[1727110512964,3.5783,2664.3,2664.0,0.37535]
[1727110512965,0.37535,2664.1,2664.0,0.37535]
[1727110513264,0.37533,2664.2,2664.0,0.37534]
[1727110513464,0.37534,2664.1,2663.9,0.37536]
[1727110513961,0.37535,2664.0,2663.9,0.37536]
[1727110514267,0.37535,2664.1,2664.0,0.37535]
[1727110514665,0.37535,2664.1,2663.9,0.37536]
[1727110515572,0.37536,2664.0,2663.5,3.2078]
[1727110516365,2.64,2663.9,2663.5,3.2078]
[1727110516571,2.64,2663.9,2663.6,0.3754]
[1727110516768,3.0154,2663.7,2663.6,0.37541]
[1727110517366,3.0154,2663.7,2663.5,3.58321]
[1727110517565,2.64,2663.9,2663.6,0.3754]
[1727110517773,0.37538,2663.8,2663.7,0.37539]
[1727110518170,0.37539,2663.7,2663.6,0.3754]
[1727110518574,0.37539,2663.7,2663.5,3.58321]
[1727110518775,0.37539,2663.7,2663.6,0.37541]
[1727110519076,0.37538,2663.8,2663.6,0.37541]
[1727110519281,0.3754,2663.7,2663.5,3.58321]
[1727110519969,0.3754,2663.7,2663.6,0.37541]
[1727110520364,0.37539,2663.8,2663.6,0.37541]
[1727110520563,0.37539,2663.7,2663.6,0.37541]
[1727110520769,0.37539,2663.7,2663.5,3.58321]
[1727110520968,0.37539,2663.8,2663.6,0.37541]
[1727110521685,0.37539,2663.7,2663.5,3.58321]
[1727110521879,0.37539,2663.7,2663.4,41.5944]
[1727110521880,0.37542,2663.5,2663.4,40.8]
[1727110522172,0.37544,2663.4,2663.2,3.58325]
[1727110522379,3.01543,2663.5,2663.2,3.2078]
[1727110522677,3.01543,2663.5,2663.3,0.37545]
[1727110523067,3.01543,2663.5,2663.0,40.8]
[1727110523068,0.37545,2663.4,2663.2,0.37546]
[1727110523463,0.37545,2663.4,2663.3,0.37545]
[1727110524179,0.37545,2663.3,2663.0,40.8]
[1727110524414,0.37545,2663.4,2663.3,0.37545]
[1727110524876,3.01543,2663.5,2663.3,0.37545]
[1727110525271,2.64,2663.7,2663.0,41.73871]
[1727110525472,2.64,2663.7,2663.6,0.37541]
[1727110525670,0.37539,2663.8,2663.2,4.14645]
[1727110525875,3.01539,2663.7,2663.5,0.37542]
[1727110526271,2.64,2663.7,2663.6,0.37541]
[1727110527575,3.01539,2663.7,2663.6,0.37541]
[1727110527777,4.2209,2663.9,2663.8,0.37538]
[1727110527979,7.9745,2663.9,2663.8,0.37538]
[1727110528178,5.8478,2664.1,2664.0,0.37535]
[1727110528585,3.2078,2664.1,2664.0,0.37535]
[1727110528978,3.01531,2664.3,2663.8,3.2078]
[1727110529186,3.01531,2664.3,2664.1,0.37533]
[1727110529784,3.01531,2664.3,2663.8,4.14624]
[1727110529990,2.64,2664.3,2664.2,0.37532]
[1727110530186,2.64,2664.3,2663.8,4.14625]
[1727110530387,0.37532,2664.2,2663.8,3.2078]
[1727110530688,2.64,2664.3,2664.2,0.37532]
[1727110531084,1.5577,2664.5,2664.4,0.3753]
[1727110531085,4.1977,2664.5,2664.4,0.3753]
[1727110531280,4.57299,2664.5,2664.3,0.3753]
[1727110531482,4.1977,2664.5,2664.4,0.3753]
[1727110534184,4.1977,2664.5,2664.2,0.7474]
[1727110534185,4.1977,2664.5,2664.3,0.3753]
[1727110534394,4.1977,2664.5,2664.2,0.7474]
[1727110534713,4.1977,2664.5,2664.4,0.3753]
[1727110534996,4.57299,2664.5,2664.3,0.3753]
[1727110535299,4.57299,2664.5,2664.4,0.3753]
[1727110535493,0.3753,2664.4,2664.3,0.3753]
[1727110535685,2.64,2664.4,2664.3,0.3753]
[1727110536298,2.64,2664.4,2664.3,0.37531]
[1727110536299,3.0153,2664.4,2664.3,0.37531]
[1727110537397,6.7689,2664.4,2664.3,0.37531]
[1727110537598,3.0153,2664.4,2664.3,0.37531]
[1727110537901,6.7689,2664.4,2664.3,0.37531]
[1727110538125,3.0153,2664.4,2664.3,0.37531]
[1727110539102,2.64,2664.4,2664.3,0.37531]
[1727110539809,6.7689,2664.4,2664.3,0.37531]
[1727110540404,0.37532,2664.3,2664.2,0.37531]
[1727110541199,3.0153,2664.4,2664.3,0.37531]
[1727110541503,2.64,2664.4,2664.3,0.37531]
[1727110541805,3.0153,2664.4,2664.3,0.37531]
[1727110544821,2.64,2664.4,2664.1,3.9576]
[1727110545004,3.95364,2664.2,2664.1,3.2078]
[1727110545711,0.8057,2664.3,2664.2,0.37532]